bitfinex-derivatives/quotes_ETHF0:USTF0_20250816
["timestamp","ask_amount","ask_price","bid_price","bid_amount"]
[1755314733721,1.205,4453.8,4453.7,21.9313]
[1755314735318,0.7972,4453.8,4453.7,21.9313]
[1755314735622,0.9665,4453.8,4453.7,21.9313]
[1755314735824,1.457,4453.8,4453.7,21.9313]
[1755314739223,3.2078,4453.9,4453.8,0.7284]
[1755314739428,0.8598,4454.3,4453.8,23.85057278]
[1755314739631,1.205,4454.2,4454.1,0.5774]
[1755314739828,1.457,4454.2,4454.1,21.9293]
[1755314740235,1.457,4454.2,4454.1,21.5621]
[1755314741735,1.457,4454.2,4454.1,21.9293]
[1755314742128,0.9665,4454.2,4454.1,21.9293]
[1755314742328,0.4279,4454.2,4454.1,21.9283]
[1755314742531,3.8156,4454.5,4454.1,21.9283]
[1755314742835,4.2435,4454.5,4454.4,0.8084]
[1755314743133,4.4128,4454.5,4454.4,21.9283]
[1755314744228,4.1743,4454.5,4454.4,21.9283]
[1755314744428,3.4626,4454.5,4454.4,21.9283]
[1755314744634,3.2078,4454.5,4454.4,21.9283]
[1755314746335,4.005,4454.5,4454.4,21.9283]
[1755314746536,4.1743,4454.5,4454.4,21.9283]
[1755314746736,4.6648,4454.5,4454.4,21.9283]
[1755314747438,4.6648,4454.5,4454.4,20.503]
[1755314748833,0.8799,4454.4,4453.9,0.44869]
[1755314749032,1.4787,4454.4,4454.3,1.2115]
[1755314749230,1.4787,4454.4,4454.3,21.9696]
[1755314749737,0.9595,4454.4,4454.3,21.9696]
[1755314750238,3.2078,4454.5,4454.4,0.2438]
[1755314750433,3.6337,4454.5,4454.4,1.4686]
[1755314750638,4.4239,4454.5,4454.4,1.4686]
[1755314750939,4.6865,4454.5,4454.4,1.4686]
[1755314751996,3.2078,4454.5,4454.4,1.4686]
[1755314753938,4.0877,4455.0,4454.4,1.04894]
[1755314754242,4.6865,4455.0,4454.9,0.5892]
[1755314754432,4.6865,4455.0,4454.9,20.499]
[1755314754841,3.8066,4455.0,4454.9,20.499]
[1755314755333,4.3258,4455.0,4454.9,20.499]
[1755314755534,4.6865,4455.0,4454.9,20.499]
[1755314757741,4.6865,4455.0,4454.5,0.2438]
[1755314757941,0.5988,4454.7,4454.6,20.913]
[1755314758237,1.4787,4454.7,4454.6,21.3443]
[1755314759035,1.4787,4454.7,4454.6,20.8434]
[1755314759240,1.4787,4454.7,4454.6,21.3443]
[1755314759436,1.4787,4454.7,4454.6,21.7117]
[1755314759736,0.1723,4454.2,4454.1,0.3674]
[1755314759942,0.1723,4454.2,4454.1,20.498]
[1755314759943,4.6865,4454.2,4454.1,20.498]
[1755314761440,4.6865,4454.2,4454.1,20.8434]
[1755314761635,4.6865,4454.2,4454.1,21.9666]
[1755314762437,4.6865,4454.2,4454.1,21.5982]
[1755314762638,4.6865,4454.2,4454.1,21.3411]
[1755314763237,4.6865,4454.2,4454.1,21.9656]
[1755314766142,4.6865,4454.2,4454.1,21.5982]
[1755314766944,4.1673,4454.2,4454.1,21.5982]
[1755314767444,3.6337,4454.2,4454.1,21.9656]
[1755314770355,0.4259,4454.2,4454.1,21.9656]
[1755314770553,0.5988,4454.2,4454.1,21.9656]
[1755314771263,0.9595,4454.5,4454.4,1.2248]
[1755314771555,1.61839861,4454.5,4454.4,21.9646]
[1755314775552,0.13969861,4454.5,4454.4,21.9646]
[1755314775755,3.2078,4454.7,4454.4,21.9646]
[1755314775952,3.2078,4454.7,4454.6,2.52157278]
[1755314776152,3.2078,4454.7,4454.6,23.88487278]
[1755314778053,3.553,4455.2,4455.1,0.3454]
[1755314778359,3.94623489,4455.2,4455.1,21.9626]
[1755314778556,3.34743489,4455.2,4455.1,21.9626]
[1755314778858,3.2078,4455.2,4455.1,21.9626]
[1755314779253,0.3805,4455.7,4455.2,0.5093]
[1755314779454,0.9868,4455.7,4455.6,0.5751]
[1755314779654,1.64138157,4455.7,4455.6,21.9395]
[1755314781255,0.74588157,4455.7,4455.0,0.2537]
[1755314781564,1.5018,4455.2,4455.1,0.3333]
[1755314781765,1.5018,4455.2,4455.1,20.8263]
[1755314784668,1.5018,4455.2,4455.1,0.3333]
[1755314784867,0.9868,4455.2,4455.1,20.491]
[1755314785067,0.3805,4455.1,4454.5,0.2537]
[1755314785267,0.9868,4454.6,4454.5,1.4455]
[1755314785573,1.5018,4454.6,4454.5,21.9355]
[1755314785874,0.9868,4454.6,4454.5,21.9355]
[1755314790778,0.4311,4454.6,4454.5,21.9355]
[1755314791279,0.4311,4454.6,4454.5,1.4455]
[1755314791475,3.2078,4455.4,4454.6,0.2537]
[1755314791779,4.7096,4455.4,4455.3,1.4455]
[1755314791976,0.3805,4455.7,4455.4,0.8704]
[1755314792181,3.2078,4455.9,4455.6,0.5751]
[1755314792378,3.2078,4455.9,4455.2,1.92127278]
[1755314792379,0.3805,4455.8,4455.7,20.7308]
[1755314792579,1.5018,4455.8,4455.7,21.4252]
[1755314793079,1.5018,4455.8,4455.7,21.9345]
[1755314794171,3.2078,4455.9,4455.7,21.9345]
[1755314794383,3.2078,4455.9,4455.7,21.3178]
[1755314794673,4.7096,4455.9,4455.8,1.4455]
[1755314796680,1.5018,4455.9,4455.8,1.4455]
[1755314797081,3.5883,4456.4,4455.9,0.8704]
[1755314797386,4.7096,4456.4,4456.3,1.4455]
[1755314797584,4.7096,4456.4,4456.3,21.9315]
[1755314798686,4.7096,4456.4,4456.3,1.4455]
[1755314798889,4.7096,4456.4,4456.3,21.9315]
[1755314799382,3.2078,4456.4,4456.3,21.9315]
[1755314799587,1.1213,4456.4,4456.3,20.8193]
[1755314799788,1.5018,4456.4,4456.3,20.8193]
[1755314799980,1.5018,4456.4,4456.3,20.486]
[1755314800389,4.7096,4456.4,4456.3,20.486]
[1755314801088,4.7096,4456.4,4456.3,20.6453]
[1755314801288,3.4592,4456.9,4456.3,21.3286]
[1755314801487,1.38926909,4456.8,4456.7,0.5751]
[1755314801790,1.64066909,4456.8,4456.7,21.9295]
[1755314804090,1.5018,4456.8,4456.7,21.9295]
[1755314805691,0.6063,4456.8,4456.7,21.9295]
[1755314805987,3.8397,4457.4,4456.7,21.6758]
[1755314806188,1.5018,4457.2,4457.1,1.4455]
[1755314806390,1.5018,4457.2,4457.1,21.9265]
[1755314809492,1.5018,4457.2,4457.1,20.8143]
[1755314810493,1.5018,4457.2,4457.1,21.296]
[1755314810692,1.5018,4457.2,4457.1,21.661]
[1755314810894,1.5018,4457.2,4457.1,21.8988]
[1755314818896,0.6063,4457.2,4456.2,0.4817]
[1755314819102,0.5826,4456.4,4456.3,21.6503]
[1755314819296,1.4644,4456.4,4456.3,21.8891]
[1755314820296,1.0818,4456.4,4456.3,20.473]
[1755314820498,1.2226,4456.4,4456.3,20.8036]
[1755314820803,1.4644,4456.4,4456.3,21.8881]
[1755314822497,3.2078,4456.9,4456.3,21.6452]
[1755314822702,3.7904,4456.9,4456.8,0.8123]
[1755314822898,3.92959477,4456.9,4456.8,20.473]
[1755314823204,0.5826,4456.7,4456.6,20.473]
[1755314823401,1.4644,4456.7,4456.6,20.473]
[1755314825003,1.60361127,4456.7,4456.6,20.473]
[1755314825206,1.60361127,4456.7,4456.2,0.365]
[1755314825207,0.72181127,4456.7,4456.2,0.365]
[1755314825505,0.72181127,4456.7,4456.1,1.92127278]
[1755314825506,1.4644,4456.2,4456.1,3.33637278]
[1755314825699,1.4644,4456.2,4456.1,23.80837278]
[1755314825899,0.9652,4456.2,4456.1,23.80837278]
[1755314826299,0.5826,4456.2,4456.1,23.80837278]
[1755314826602,0.3826,4456.1,4456.0,3.2078]
[1755314826808,1.4644,4456.1,4456.0,21.8871]
[1755314827298,0.2517,4456.1,4456.0,21.8871]
[1755314827498,0.64,4456.5,4456.0,21.8871]
[1755314827797,0.4992,4456.7,4456.4,0.2429]
[1755314827993,1.4644,4456.5,4456.4,0.5735]
[1755314828199,1.60363509,4456.5,4456.4,21.2843]
[1755314828395,1.60363509,4456.5,4456.4,21.6493]
[1755314828806,1.60363509,4456.5,4456.4,21.8871]
[1755314829104,1.36183509,4456.5,4456.4,21.8871]
[1755314829305,0.47013509,4456.5,4456.4,21.8871]
[1755314829608,1.60363509,4456.5,4456.4,21.8871]
[1755314829904,3.2078,4456.9,4456.4,23.80837278]
[1755314830203,0.13925908,4456.8,4456.7,1.4151]
[1755314830404,0.13925908,4456.8,4456.7,23.80837278]
[1755314830902,0.30965908,4456.8,4456.7,23.80837278]
[1755314831096,1.20135908,4456.8,4456.7,23.80837278]
[1755314834110,0.5826,4456.5,4456.4,0.4817]
[1755314834411,1.60365908,4456.5,4456.4,20.6297]
[1755314837008,0.5826,4456.2,4455.7,3.2078]
[1755314837205,0.5826,4455.9,4455.8,21.6473]
[1755314837412,1.4644,4455.9,4455.8,21.8851]
[1755314838716,1.4644,4455.9,4455.8,23.80637278]
[1755314840419,1.4644,4455.9,4455.8,3.33637278]
[1755314840618,1.4644,4455.9,4455.0,2.81336035]
[1755314840619,0.3324,4455.3,4455.2,0.8147]
[1755314840909,1.4658,4455.3,4455.2,21.541]
[1755314841419,1.4658,4455.3,4455.2,21.9224]
[1755314841816,1.4658,4455.3,4455.2,21.9234]
[1755314842918,4.29,4456.3,4456.2,0.3278]
[1755314843118,4.81272709,4456.3,4456.2,21.9224]
[1755314844821,3.77512709,4456.3,4456.2,21.9224]
[1755314845318,0.3836,4456.5,4456.3,0.8683]
[1755314845519,0.3836,4456.5,4456.4,1.072]
[1755314845719,0.8118,4456.5,4456.4,1.4534]
[1755314846423,1.60494485,4456.5,4456.4,1.4534]
[1755314848322,1.60494485,4456.5,4455.8,3.2078]
[1755314848323,0.3324,4455.9,4455.8,0.8147]
[1755314848519,1.4658,4455.9,4455.8,21.9224]
[1755314849417,0.588,4455.9,4454.8,6.02116035]
[1755314849615,3.2078,4455.7,4454.9,20.469]
[1755314849821,0.4282,4455.1,4455.0,21.9224]
[1755314850017,0.3836,4455.5,4455.0,21.9224]
[1755314850223,1.2102,4455.5,4455.4,0.3278]
[1755314850428,1.4658,4455.5,4455.4,21.9224]
[1755314852620,3.2078,4455.7,4455.4,21.541]
[1755314852829,0.4282,4455.5,4455.4,21.0541]
[1755314853226,0.8118,4455.5,4455.4,21.0541]
[1755314853425,0.8118,4455.5,4455.4,21.9224]
[1755314855430,0.4282,4455.5,4455.4,21.9224]
[1755314855632,3.2078,4455.7,4455.5,1.4534]
[1755314855926,3.636,4455.7,4455.6,1.4534]
[1755314856130,3.2078,4455.7,4455.6,1.4534]
[1755314857032,0.9602,4455.9,4455.8,0.3278]
[1755314857232,1.11144031,4455.9,4455.8,21.9224]
[1755314858027,3.452,4456.2,4455.8,21.9224]
[1755314858335,0.8118,4456.0,4455.9,1.4534]
[1755314858536,0.13980299,4456.0,4455.9,1.4534]
[1755314858732,3.2078,4456.2,4456.0,0.8683]
[1755314858733,0.3836,4456.1,4456.0,0.8683]
[1755314858934,0.8118,4456.1,4456.0,0.5851]
[1755314859128,0.4282,4456.1,4456.0,0.5851]
[1755314859535,0.4282,4456.1,4456.0,1.4534]
[1755314859735,0.6724,4456.1,4456.0,1.4534]
[1755314859934,1.4658,4456.1,4456.0,1.4534]
[1755314862841,3.2078,4456.2,4456.0,1.4534]
[1755314863040,3.2078,4456.2,4456.1,23.84367278]
[1755314863240,3.2078,4456.2,4456.1,23.84267278]
[1755314863642,3.636,4456.8,4456.7,0.5851]
[1755314863837,3.60329744,4456.8,4456.7,23.84267278]
[1755314864030,3.4634,4456.8,4456.7,23.84267278]
[1755314864233,0.3836,4457.2,4456.7,22.97437278]
[1755314864436,0.3836,4457.2,4457.1,2.50637278]
[1755314864742,0.3836,4457.2,4457.1,23.84267278]
[1755314865237,0.5562,4457.2,4457.1,23.84267278]
[1755314865438,0.8118,4457.2,4457.1,23.84267278]
[1755314865639,0.2556,4457.2,4457.1,23.84267278]
[1755314865841,0.6392,4457.2,4457.1,23.84267278]
[1755314866843,0.9716,4457.2,4457.1,23.84267278]
[1755314867043,0.9716,4457.2,4457.1,21.9214]
[1755314867044,1.4658,4457.2,4457.1,21.9214]
[1755314867935,0.1726,4457.2,4457.1,21.4345]
[1755314868144,1.4658,4457.2,4457.1,21.4345]
[1755314868546,1.4658,4457.2,4457.1,21.9356]
[1755314869147,3.2078,4457.3,4457.1,21.9356]
[1755314869345,3.2078,4457.3,4457.2,3.38677278]
[1755314870050,4.6602,4457.3,4457.2,1.4655]
[1755314870450,1.4524,4457.2,4457.1,2.24937278]
[1755314870651,1.4524,4457.2,4457.1,23.21547278]
[1755314871052,1.4524,4457.2,4457.1,23.60457278]
[1755314872055,1.4524,4457.2,4457.1,23.85177278]
[1755314872254,0.9507,4457.2,4457.1,23.85177278]
[1755314873957,1.1992,4457.2,4457.1,23.85177278]
[1755314875558,1.092,4457.0,4456.9,1.92127278]
[1755314875859,1.4524,4457.0,4456.9,23.04837278]
[1755314876056,1.4524,4457.0,4456.9,23.21147278]
[1755314876256,1.4524,4457.0,4456.9,23.84777278]
[1755314876564,1.4524,4457.0,4456.9,23.45867278]
[1755314876757,0.4292,4457.0,4456.9,23.84777278]
[1755314877362,3.2078,4457.3,4457.2,0.3281]
[1755314877556,3.2078,4457.3,4457.2,21.9265]
[1755314879367,3.7981,4458.0,4457.9,1.4655]
[1755314879565,4.6602,4458.0,4457.9,21.9255]
[1755314880662,1.4524,4457.5,4456.7,0.6422]
[1755314880863,1.092,4456.9,4456.8,21.2892]
[1755314881060,1.4524,4456.9,4456.8,21.6783]
[1755314881256,1.4524,4456.9,4456.8,21.9255]
[1755314881460,0.9507,4456.9,4456.8,21.9255]
[1755314881660,0.3604,4457.3,4456.8,21.9255]
[1755314881861,0.5903,4457.2,4457.1,3.38677278]
[1755314882058,1.4524,4457.2,4457.1,23.84677278]
[1755314882263,1.4524,4457.2,4457.1,23.45767278]
[1755314883266,1.4524,4457.2,4457.1,23.84677278]
[1755314884364,0.5903,4456.2,4456.1,3.7831]
[1755314884567,0.4292,4456.2,4456.1,27.09657278]
[1755314885968,0.7896,4456.2,4456.1,27.09657278]
[1755314886365,1.1992,4456.2,4456.1,27.09657278]
[1755314887374,1.4524,4456.2,4456.1,27.09657278]
[1755314888475,1.4524,4456.2,4456.1,26.70747278]
[1755314888773,1.4524,4456.2,4456.1,5.45717278]
[1755314888974,1.4524,4456.2,4456.1,25.94917278]
[1755314889570,1.4524,4456.2,4456.1,5.45717278]
[1755314889774,0.9507,4456.2,4456.1,26.44827278]
[1755314889972,0.9507,4456.2,4456.1,26.83737278]
[1755314890375,1.4524,4456.2,4456.1,26.44827278]
[1755314890676,1.4524,4456.2,4456.1,25.94717278]
[1755314892169,1.4524,4456.2,4456.1,25.94217278]
[1755314892370,0.9507,4456.2,4456.1,27.28083278]
[1755314893175,0.9507,4456.2,4456.1,26.83237278]
[1755314893473,0.5903,4456.2,4456.1,26.83237278]
[1755314894173,1.1992,4456.2,4456.1,26.83237278]
[1755314896475,0.9507,4456.2,4456.1,26.83237278]
[1755314897074,1.4524,4456.2,4456.1,26.83237278]
[1755314897270,1.4524,4456.2,4456.1,25.94217278]
[1755314897576,1.4524,4456.2,4456.1,22.73437278]
[1755314898079,1.4524,4456.2,4456.1,22.40627278]
[1755314900877,0.5944,4455.4,4455.3,1.1057]
[1755314901182,1.4795,4455.4,4455.3,21.974]
[1755314901372,1.4795,4455.4,4455.3,21.8004]
[1755314901674,1.4795,4455.4,4455.3,21.974]
[1755314901975,1.4795,4455.4,4455.3,21.3246]
[1755314902176,1.4795,4455.4,4455.3,21.974]
[1755314902766,1.4795,4455.4,4455.3,21.97]
[1755314904080,1.4795,4455.4,4455.3,1.493]
[1755314904386,1.4795,4455.4,4455.3,21.97]
[1755314905082,1.0551,4455.4,4455.3,21.97]
[1755314905781,4.6873,4456.0,4455.9,1.493]
[1755314906082,4.6873,4456.0,4455.9,21.967]
[1755314908980,4.6873,4456.0,4455.9,21.967]
[1755314909173,4.6873,4456.0,4455.9,21.5797]
[1755314909370,4.6873,4456.0,4455.9,21.967]
[1755314912187,3.2078,4456.0,4455.9,21.967]
[1755314913178,4.0179,4456.0,4455.9,21.967]
[1755314913380,4.6873,4456.0,4455.9,21.7049]
[1755314913683,3.6276,4456.0,4455.9,21.967]
[1755314914384,3.4631,4456.0,4455.9,21.967]
[1755314914582,3.2078,4456.0,4455.9,21.967]
[1755314914777,1.0892,4456.3,4456.2,0.5985]
[1755314915081,1.0892,4456.3,4456.2,21.958]
[1755314915485,1.4795,4456.3,4456.2,21.958]
[1755314915982,1.4795,4456.3,4456.2,21.0635]
[1755314916181,1.4795,4456.3,4456.2,21.958]
[1755314916381,0.5944,4456.3,4456.2,21.958]
[1755314916583,1.4795,4456.3,4456.2,21.958]
[1755314916983,1.4795,4456.3,4456.2,20.465]
[1755314917280,1.4795,4456.3,4456.2,21.6959]
[1755314917489,1.4795,4456.3,4456.2,21.958]
[1755314918576,1.4795,4456.3,4456.2,20.465]
[1755314919378,0.4948,4455.9,4455.0,35.5128]
[1755314919582,1.4795,4454.9,4454.8,4.30636035]
[1755314919774,1.4795,4454.9,4454.8,21.96]
[1755314921386,1.4795,4454.9,4454.8,1.493]
[1755314921585,4.6873,4454.9,4454.8,21.3096]
[1755314921884,4.6873,4454.9,4454.8,21.0507]
[1755314922281,4.6873,4454.9,4454.8,20.466]
[1755314922476,4.6873,4454.9,4454.5,0.5072]
[1755314922684,0.5944,4454.7,4454.6,20.467]
[1755314922885,1.4795,4454.7,4454.6,20.467]
[1755314923687,0.5944,4454.7,4454.2,1.92127278]
[1755314923983,32.314,4457.0,4454.0,0.8436]
[1755314923984,1.4795,4454.1,4454.0,0.8436]
[1755314924287,1.4795,4454.1,4454.0,21.6979]
[1755314924586,1.4795,4454.1,4454.0,21.96]
[1755314926489,1.4795,4454.1,4454.0,21.0517]
[1755314927086,0.4948,4454.0,4453.7,32.312]
[1755314927386,1.4795,4453.5,4453.4,3.16597278]
[1755314927682,1.4795,4453.5,4453.4,23.88327278]
[1755314928081,1.4795,4453.5,4453.4,3.41427278]
[1755314928285,1.4795,4453.5,4453.4,23.88527278]
[1755314929584,1.4795,4453.5,4453.4,3.41427278]
[1755314929890,1.4795,4453.5,4453.4,23.88527278]
[1755314935392,0.415,4453.8,4453.7,0.3276]
[1755314935597,1.4368,4453.8,4453.7,21.9514]
[1755314939298,1.4368,4453.8,4453.7,21.0638]
[1755314940001,1.4368,4453.8,4453.7,20.8006]
[1755314940205,3.2078,4453.9,4452.9,0.44879]
[1755314940206,0.8533,4453.7,4452.9,0.44879]
[1755314940401,1.4368,4453.0,4452.9,1.4784]
[1755314940697,1.4368,4453.0,4452.9,21.9524]
[1755314941699,1.1929,4453.0,4452.9,21.9524]
[1755314942497,0.9472,4453.0,4452.9,21.9524]
[1755314943809,3.2078,4453.9,4452.9,1.4784]
[1755314944108,1.4368,4453.0,4452.9,3.39967278]
[1755314944308,1.4368,4453.0,4452.9,23.87467278]
[1755314945406,0.9472,4453.0,4452.9,23.87467278]
[1755314945606,0.24,4453.0,4452.9,23.87467278]
[1755314946605,0.8533,4453.4,4452.9,22.98707278]
[1755314946803,1.0731,4453.4,4453.3,0.3276]
[1755314947006,1.0731,4453.4,4453.3,21.3012]
[1755314947306,1.0731,4453.4,4453.3,0.8262]
[1755314947606,1.4368,4453.4,4453.3,21.3012]
[1755314948105,1.4368,4453.4,4453.3,20.8026]
[1755314948307,1.4368,4453.4,4453.3,21.3012]
[1755314949508,1.4368,4453.4,4453.3,21.9534]
[1755314950407,1.4368,4453.4,4453.3,23.87467278]
[1755314952111,1.4368,4453.4,4453.3,20.475]
[1755314953913,1.4368,4453.4,4453.3,20.6398]
[1755314954113,1.4368,4453.4,4453.3,20.8026]
[1755314954313,1.4368,4453.4,4453.3,21.3012]
[1755314956710,1.4368,4453.4,4453.0,0.389]
[1755314956912,0.5835,4453.2,4453.1,20.8026]
[1755314957113,1.4368,4453.2,4453.1,21.9534]
[1755314959614,1.4368,4453.2,4453.1,1.4784]
[1755314959915,1.4368,4453.2,4453.1,21.9534]
[1755314960414,1.4368,4453.2,4452.9,1.92127278]
[1755314960711,1.4671,4453.1,4453.0,20.8052]
[1755314960911,1.4671,4453.1,4453.0,0.3302]
[1755314961116,1.4671,4453.1,4453.0,20.8052]
[1755314961415,1.4671,4453.1,4453.0,20.8821]
[1755314961713,1.4671,4453.1,4453.0,21.6484]
[1755314962813,1.4671,4453.1,4453.0,21.2868]
[1755314963014,1.4671,4453.1,4453.0,21.6474]
[1755314963314,1.4671,4453.1,4453.0,21.8881]
[1755314965518,1.0383,4453.1,4453.0,21.8881]
[1755314965919,1.4671,4453.1,4453.0,21.8881]
[1755314970423,0.5757,4453.1,4452.6,3.2078]
[1755314970622,3.7835,4452.8,4452.4,32.317]
[1755314970823,0.5757,4452.6,4452.5,21.8871]
[1755314971120,0.9519,4452.6,4452.5,21.8871]
[1755314971424,1.4671,4452.6,4452.5,21.8871]
[1755314973719,0.2514,4452.5,4452.1,0.10107476]
[1755314973922,0.9519,4452.2,4452.1,0.43127476]
[1755314974127,1.4671,4452.2,4452.1,21.98817476]
[1755314975134,1.4671,4452.2,4452.1,21.62757476]
[1755314975628,1.4671,4452.2,4452.1,1.15457476]
[1755314975830,1.4671,4452.2,4452.1,21.62757476]
[1755314976325,1.4671,4452.2,4452.1,20.57507476]
[1755314977425,1.4671,4452.2,4452.1,20.90527476]
[1755314977927,1.4671,4452.2,4452.1,20.57507476]
[1755314979529,1.4671,4452.2,4452.1,0.10107476]
[1755314979728,3.71537117,4452.2,4450.9,0.6013]
[1755314980035,0.6276,4451.4,4451.1,3.33537278]
[1755314980331,1.4671,4451.4,4451.3,1.4141]
[1755314980631,1.4671,4451.4,4451.3,21.8891]
[1755314987532,1.4671,4451.4,4451.3,21.8911]
[1755314990830,1.4671,4451.4,4451.3,20.8072]
[1755314991030,1.4671,4451.4,4451.3,21.709]
[1755314991534,1.4671,4451.4,4451.3,21.3149]
[1755314991937,1.4671,4451.4,4451.3,21.0531]
[1755314992137,1.4671,4451.4,4451.3,20.8072]
[1755314992939,1.4671,4451.4,4451.3,0.3302]
[1755314993140,1.4671,4451.4,4451.3,20.8072]
[1755314996540,1.4671,4451.4,4451.3,21.3149]
[1755314999242,1.4671,4451.4,4451.3,21.9585]
[1755315001545,0.5792,4451.0,4450.9,0.9937]
[1755315001736,0.5792,4451.0,4450.9,21.4707]
[1755315001939,0.5792,4451.0,4450.9,21.9784]
[1755315002139,1.4689,4451.0,4450.9,21.9784]
[1755315002443,0.4129,4451.0,4450.9,21.9784]
[1755315002640,3.2078,4451.6,4450.9,21.3788]
[1755315002948,3.2078,4451.6,4451.5,3.02857278]
[1755315003243,3.2078,4451.6,4451.5,23.89967278]
[1755315003942,4.0127,4451.6,4451.5,21.9784]
[1755315004143,4.5104,4451.6,4451.5,21.9784]
[1755315004447,4.6767,4451.6,4451.5,21.9784]
[1755315005040,0.3295,4450.8,4450.7,0.2618]
[1755315005242,0.1632,4450.0,4449.9,1.0761]
[1755315005451,1.4689,4450.0,4449.9,1.5014]
[1755315005650,1.4689,4450.0,4449.9,21.9774]
[1755315005651,0.9712,4450.0,4449.9,21.9774]
[1755315005944,0.8897,4450.3,4449.9,1.5014]
[1755315006142,1.4689,4450.0,4449.9,1.5014]
[1755315006349,1.4689,4450.0,4449.9,21.9774]
[1755315007349,1.4689,4450.0,4449.9,1.5014]
[1755315007646,1.4689,4450.0,4449.9,21.9774]
[1755315009445,1.4689,4450.0,4449.9,1.5014]
[1755315009648,1.4689,4450.0,4449.9,21.5843]
[1755315009845,0.8897,4449.9,4449.2,0.9018]
[1755315010143,1.3026,4449.4,4449.3,1.5014]
[1755315010339,1.2257,4449.4,4449.3,1.5014]
[1755315010644,0.4977,4449.3,4448.6,0.64]
[1755315010846,1.4689,4448.8,4448.7,1.1073]
[1755315011039,1.4689,4448.8,4448.2,1.92127278]
[1755315011248,0.8897,4448.5,4447.3,4.1096]
[1755315011447,3.5373,4448.1,4448.0,0.3501]
[1755315011641,4.6767,4448.1,4447.8,0.64]
[1755315011848,1.4689,4447.9,4447.8,0.1743]
[1755315012250,0.5792,4447.6,4447.5,1.0761]
[1755315012452,0.9712,4447.6,4447.3,3.2078]
[1755315012749,3.2078,4447.4,4447.3,0.3501]
[1755315013050,4.0415,4448.0,4447.9,0.3501]
[1755315013251,4.4335,4448.0,4447.9,0.3501]
[1755315013645,4.6767,4448.0,4447.7,0.2618]
[1755315013851,0.4129,4447.1,4447.0,21.0996]
[1755315014051,0.8049,4447.1,4447.0,22.0014]
[1755315014349,0.6465,4448.3,4447.9,0.1743]
[1755315014555,0.6465,4448.3,4446.8,3.04479278]
[1755315014556,0.5792,4448.3,4448.2,0.3501]
[1755315014755,0.5792,4448.4,4448.3,1.3256]
[1755315015048,1.4689,4448.4,4448.3,1.5014]
[1755315015255,3.2078,4448.5,4448.4,1.0776]
[1755315015552,3.6207,4449.0,4448.9,1.1073]
[1755315015751,3.2078,4449.0,4448.0,3.2078]
[1755315016055,0.5792,4448.1,4448.0,21.1276]
[1755315016349,0.392,4448.7,4448.4,0.5996]
[1755315016553,4.6767,4449.1,4449.0,1.1073]
[1755315016758,0.5792,4449.1,4449.0,1.5014]
[1755315017053,1.4689,4449.5,4449.4,0.5996]
[1755315017247,1.4689,4449.5,4449.4,1.2555]
[1755315017452,1.4689,4449.5,4449.2,0.2459]
[1755315017750,1.0769,4449.3,4449.0,20.8158]
[1755315017956,0.8049,4449.2,4449.1,0.1743]
[1755315018248,1.2257,4449.2,4449.1,1.5014]
[1755315018454,3.8578,4449.6,4449.2,0.8634]
[1755315018650,3.2078,4449.6,4449.5,1.4478]
[1755315019350,3.7756,4449.6,4449.5,1.4478]
[1755315019648,4.1641,4449.6,4449.5,1.4478]
[1755315019851,4.6759,4449.6,4449.5,1.4478]
[1755315020156,4.1641,4449.6,4449.5,1.4478]
[1755315020347,3.2078,4449.6,4449.5,22.0008]
[1755315020554,1.4681,4450.3,4450.2,1.4478]
[1755315020852,3.2078,4450.4,4450.3,0.8634]
[1755315021054,0.3885,4450.7,4450.3,0.5844]
[1755315021253,1.2178,4450.7,4450.6,1.4478]
[1755315021559,1.4681,4450.7,4450.6,1.081]
[1755315022554,4.1641,4451.0,4450.9,0.5844]
[1755315022756,3.2078,4451.0,4450.9,1.4478]
[1755315023052,6.59717278,4451.0,4450.3,0.4966]
[1755315023265,0.3885,4450.4,4449.8,20.7987]
[1755315023553,0.5678,4449.9,4449.8,21.1413]
[1755315023749,0.9563,4449.9,4449.8,21.634]
[1755315023952,0.9003,4450.4,4449.8,22.0008]
[1755315025560,1.0796,4449.9,4449.8,21.9978]
[1755315025758,0.5118,4449.8,4449.1,3.7044]
[1755315026063,0.795,4449.2,4449.1,4.2888]
[1755315026356,0.4065,4449.2,4449.1,21.639]
[1755315026559,0.4065,4449.2,4449.1,22.0058]
[1755315027657,0.9563,4449.2,4449.1,0.3426]
[1755315027851,0.4065,4449.2,4449.1,21.1454]
[1755315028155,1.4681,4449.2,4448.8,0.2509]
[1755315028356,1.0796,4448.9,4448.8,0.1757]
[1755315028557,0.5678,4448.9,4448.7,20.56]
[1755315028750,1.4681,4448.8,4448.5,0.2509]
[1755315028953,0.5678,4448.7,4448.6,0.3426]
[1755315029563,1.4681,4448.7,4448.6,0.3426]
[1755315029753,5.12907278,4449.0,4448.3,20.7377]
[1755315029754,0.3246,4448.4,4448.3,20.7377]
[1755315029954,1.4681,4448.4,4448.3,20.9046]
[1755315030760,0.1633,4448.1,4448.0,0.4966]
[1755315030963,1.4681,4448.1,4448.0,0.8392]
[1755315031564,1.4681,4448.1,4448.0,0.3426]
[1755315031966,1.4681,4448.1,4448.0,0.1757]
[1755315032160,1.4681,4448.1,4447.7,21.1735]
[1755315032365,0.5678,4447.8,4447.7,21.767]
[1755315032560,3.2078,4448.5,4447.7,22.0088]
[1755315032765,1.4681,4448.4,4448.3,0.5883]